bitfinex/quotes_SOLUSD_20240622
["timestamp","ask_amount","ask_price","bid_price","bid_amount"]
[1719018035384,16.3491,133.67,133.6,9.41]
[1719018035587,16.3491,133.67,133.59,18.7126]
[1719018035588,29.41,133.66,133.62,7.4838]
[1719018036275,36.8918,133.66,133.61,16.8942]
[1719018036453,9.41,133.65,133.61,7.4842]
[1719018036853,9.41,133.64,133.61,7.4842]
[1719018037463,7.4843,133.62,133.57,15.0132]
[1719018037661,9.41,133.62,133.59,7.4852]
[1719018038471,9.41,133.62,133.6,7.4849]
[1719018039471,9.41,133.62,133.57,24.4232]
[1719018039472,9.41,133.64,133.61,7.4844]
[1719018040166,9.41,133.63,133.61,7.4844]
[1719018040557,9.41,133.63,133.6,7.4847]
[1719018040963,9.41,133.63,133.61,7.4844]
[1719018042795,9.41,133.63,133.6,7.4847]
[1719018044383,9.41,133.62,133.6,7.4847]
[1719018045557,9.41,133.61,133.59,7.4853]
[1719018045882,9.41,133.61,133.58,7.4858]
[1719018046358,9.41,133.61,133.59,7.4855]
[1719018047479,9.41,133.61,133.6,7.485]
[1719018047682,9.41,133.63,133.61,7.4843]
[1719018048069,27.4819,133.66,133.57,33.7289]
[1719018048070,20.0,133.66,133.57,52.4454]
[1719018048406,9.41,133.67,133.64,7.4826]
[1719018049476,7.4803,133.69,133.64,7.4826]
[1719018049877,20.0,133.68,133.64,7.4826]
[1719018050382,27.4806,133.68,133.64,7.4826]
[1719018051598,27.4806,133.68,133.63,7.483]
[1719018053885,7.4812,133.67,133.62,7.4836]
[1719018055083,20.0,133.68,133.6,7.4847]
[1719018055287,7.483,133.64,133.59,7.4855]
[1719018055470,28.27,133.66,133.57,15.0132]
[1719018055670,20.0,133.65,133.6,7.4848]
[1719018056081,20.0,133.65,133.57,33.7296]
[1719018056281,20.0,133.65,133.58,7.4857]
[1719018056282,7.4835,133.63,133.58,7.4857]
[1719018057091,7.4835,133.63,133.59,7.4854]
[1719018057586,20.0,133.65,133.57,33.7296]
[1719018057889,27.4818,133.66,133.61,7.4841]
[1719018058396,21.8483,133.67,133.63,7.4828]
[1719018058589,7.4808,133.68,133.64,7.4826]
[1719018058768,7.4802,133.69,133.64,7.4826]
[1719018058964,20.0,133.68,133.64,7.4826]
[1719018059175,20.0,133.68,133.6,18.8815]
[1719018059378,40.24658299,133.7,133.62,7.4837]
[1719018059379,7.4813,133.67,133.62,7.4837]
[1719018060287,7.4807,133.68,133.63,7.4832]
[1719018060481,27.4802,133.69,133.64,7.4827]
[1719018061787,7.4806,133.68,133.62,7.4834]
[1719018061991,7.4812,133.67,133.62,7.4834]
[1719018062290,7.4816,133.66,133.62,7.4834]
[1719018063174,20.0,133.65,133.57,15.0132]
[1719018063370,7.483,133.64,133.59,7.4854]
[1719018064296,7.4834,133.63,133.59,7.4854]
[1719018066397,22.9988,133.64,133.59,7.4854]
[1719018067274,20.0,133.63,133.56,7.4867]
[1719018067476,20.17,133.63,133.56,7.4867]
[1719018067691,7.4848,133.61,133.56,7.4867]
[1719018067894,20.17,133.63,133.53,35.324]
[1719018067895,27.4851,133.6,133.55,7.4876]
[1719018068086,27.4851,133.6,133.54,7.4881]
[1719018068087,7.486,133.59,133.54,7.4881]
[1719018068295,7.4863,133.58,133.53,24.0914]
[1719018068494,7.4863,133.58,133.54,7.4883]
[1719018068690,7.4857,133.59,133.54,7.4883]
[1719018070096,7.4863,133.58,133.53,24.0914]
[1719018070295,15.5158,133.59,133.49,16.6027]
[1719018070488,7.488,133.55,133.49,16.6027]
[1719018070990,7.4874,133.56,133.51,7.49]
[1719018071482,7.4874,133.56,133.52,7.4894]
[1719018071880,7.4874,133.56,133.51,7.4898]
[1719018072081,7.4879,133.55,133.5,7.4903]
[1719018072593,7.4875,133.56,133.51,7.4899]
[1719018073102,7.4875,133.56,133.52,7.4895]
[1719018073605,7.4869,133.57,133.52,7.4895]
[1719018073905,0.74895147,133.53,133.52,7.4895]
[1719018074285,0.74895147,133.53,133.52,7.8295]
[1719018077079,0.74895147,133.53,133.51,7.4899]
[1719018077606,0.74895147,133.53,133.49,16.6027]
[1719018077785,0.74895147,133.53,133.49,24.0933]
[1719018078411,0.74895147,133.53,133.49,7.4906]
[1719018078889,7.4909,133.5,133.46,16.6027]
[1719018079195,0.74895147,133.53,133.47,7.4922]
[1719018079196,7.4897,133.52,133.47,7.4922]
[1719018079382,20.0,133.51,133.43,16.6027]
[1719018079590,7.491,133.5,133.45,7.493]
[1719018079798,27.4903,133.51,133.46,7.4928]
[1719018080721,7.4907,133.5,133.45,7.4933]
[1719018080921,27.4901,133.51,133.46,7.4925]
[1719018085311,7.4913,133.49,133.43,16.6027]
[1719018085736,7.4913,133.49,133.44,7.4937]
[1719018087326,27.4919,133.48,133.43,7.4943]
[1719018087530,7.4926,133.47,133.42,7.495]
[1719018087920,7.4926,133.47,133.43,7.4944]
[1719018088233,18.7266,133.5,133.44,7.4939]
[1719018088234,7.4919,133.48,133.44,7.4939]
[1719018088417,20.0,133.47,133.44,7.4939]
[1719018089411,20.0,133.47,133.43,7.4944]
[1719018089614,20.0,133.47,133.39,16.2866]
[1719018089819,7.4923,133.47,133.43,7.4943]
[1719018090035,7.492,133.48,133.43,7.4943]
[1719018090239,20.0,133.47,133.43,7.4943]
[1719018091957,20.0,133.47,133.42,18.7374]
[1719018092248,7.4912,133.49,133.45,7.4931]
[1719018092741,7.4912,133.49,133.43,0.34]
[1719018093043,7.4923,133.47,133.4,18.7404]
[1719018093340,41.8629,133.51,133.4,18.7404]
[1719018093341,7.4935,133.45,133.4,7.4959]
[1719018093930,27.4931,133.46,133.41,7.4954]
[1719018095843,7.4935,133.45,133.41,7.4954]
[1719018097026,27.4931,133.46,133.41,7.4954]
[1719018101246,7.4935,133.45,133.41,7.4954]
[1719018101439,7.4935,133.45,133.39,16.2866]
[1719018101440,20.0,133.44,133.4,7.4961]
[1719018101641,20.0,133.44,133.41,7.4955]
[1719018102038,20.0,133.45,133.41,7.4955]
[1719018103852,27.4935,133.45,133.4,7.496]
[1719018104449,27.4935,133.45,133.41,7.4956]
[1719018105034,7.4926,133.47,133.42,7.4949]
[1719018105235,20.0,133.46,133.42,7.4949]
[1719018105848,27.4928,133.46,133.42,7.4949]
[1719018106760,41.8639,133.51,133.39,16.2866]
[1719018106926,7.4912,133.49,133.44,7.4938]
[1719018107129,20.0,133.48,133.44,7.4938]
[1719018107934,7.4912,133.49,133.44,7.4938]
[1719018109676,7.4896,133.52,133.45,0.17]
[1719018109855,7.4896,133.52,133.47,7.492]
[1719018110163,7.4891,133.53,133.48,7.4916]
[1719018110869,7.4895,133.52,133.48,7.4916]
[1719018111047,7.4891,133.53,133.48,7.4916]
[1719018112059,7.4891,133.53,133.49,7.4911]
[1719018112960,7.4891,133.53,133.48,7.4914]
[1719018113145,40.25041538,133.55,133.48,7.4914]
[1719018113146,7.4896,133.52,133.48,7.4914]
[1719018113357,7.4902,133.51,133.46,7.4926]
[1719018113559,7.4907,133.5,133.45,7.6633]
[1719018114061,0.74934433,133.46,133.45,7.6633]
[1719018114960,0.74934433,133.46,133.45,7.8333]
[1719018120368,7.4891,133.53,133.49,7.4911]
[1719018121446,27.4885,133.54,133.49,7.4911]
[1719018121649,20.0,133.54,133.5,7.4904]
[1719018122881,27.4884,133.54,133.5,7.4904]
[1719018123172,27.4884,133.54,133.49,7.491]
[1719018125359,9.45,133.51,133.44,16.1635]
[1719018125673,9.45,133.5,133.46,7.4928]
[1719018125882,16.9407,133.5,133.46,7.4928]
[1719018126053,9.45,133.5,133.45,7.4931]
[1719018126255,9.45,133.48,133.45,7.4933]
[1719018126573,20.0,133.54,133.44,53.6327]
[1719018126778,9.45,133.54,133.51,7.4895]
[1719018127463,20.0,133.55,133.51,7.4895]
[1719018128541,27.4878,133.55,133.51,7.4895]
[1719018128748,20.0,133.55,133.51,7.4895]
[1719018129064,7.4874,133.56,133.51,7.4895]
[1719018129278,24.61181507,133.58,133.49,15.1875]
[1719018129582,7.4874,133.56,133.51,7.4896]
[1719018130882,7.488,133.55,133.5,7.8303]
[1719018131103,24.61181507,133.58,133.5,7.8303]
[1719018131256,20.0,133.57,133.5,7.8303]
[1719018131869,18.7184,133.56,133.49,15.1875]
[1719018132068,18.7184,133.56,133.49,22.6784]
[1719018132069,7.4888,133.54,133.49,22.6784]
[1719018132270,7.489,133.53,133.49,22.6784]
[1719018132477,7.4886,133.54,133.49,22.6784]
[1719018132762,7.4879,133.55,133.5,7.4905]
[1719018133558,7.4885,133.54,133.5,7.4905]
[1719018133971,0.74906368,133.51,133.5,7.4905]
[1719018134357,0.74906368,133.51,133.5,6.4905]
[1719018134748,0.74906368,133.51,133.5,6.8305]
[1719018137664,0.74906368,133.51,133.5,0.34]
[1719018138658,0.74906368,133.51,133.5,7.8305]
[1719018141684,0.74906368,133.51,133.49,22.6785]
[1719018142066,0.74906368,133.51,133.49,15.1875]
[1719018142265,0.74906368,133.51,133.49,22.6785]
[1719018142975,0.74906368,133.51,133.49,15.1875]
[1719018143165,0.74906368,133.51,133.49,7.4911]
[1719018143776,8.23956368,133.51,133.46,15.2247]
[1719018144066,8.23946368,133.51,133.46,7.4928]
[1719018144399,0.74906368,133.51,133.48,7.4917]
[1719018144700,0.74906368,133.51,133.47,7.492]
[1719018144871,0.74906368,133.51,133.48,7.4917]
[1719018145274,0.74906368,133.51,133.47,7.492]
[1719018145484,8.23916368,133.51,133.46,7.4926]
[1719018146172,8.23916368,133.51,133.47,7.4923]
[1719018146990,0.74906368,133.51,133.48,7.4916]
[1719018148785,0.74906368,133.51,133.49,7.491]
[1719018149168,0.74906368,133.51,133.5,7.4906]
[1719018149862,0.74906368,133.51,133.5,7.6606]
[1719018150067,0.74906368,133.51,133.5,7.8306]
[1719018159898,0.74906368,133.51,133.5,7.4906]
[1719018164275,0.74906368,133.51,133.5,7.8306]
[1719018164475,0.74906368,133.51,133.5,26.5571]
[1719018169890,16.2958,133.61,133.57,7.4863]
[1719018170115,20.0,133.61,133.58,7.4861]
[1719018170323,7.4837,133.63,133.58,7.4861]
[1719018170814,23.7787,133.64,133.59,7.4855]
[1719018171506,23.7787,133.64,133.57,0.17]
[1719018171699,23.7787,133.64,133.59,7.4852]
[1719018171898,23.7787,133.64,133.57,0.34]
[1719018171899,23.7787,133.64,133.6,7.4849]
[1719018172104,7.4829,133.64,133.6,7.4849]
[1719018172286,7.479,133.71,133.65,7.4817]
[1719018172489,27.479,133.71,133.62,18.7093]
[1719018172804,27.479,133.71,133.65,7.4818]
[1719018172805,7.4795,133.7,133.65,7.4818]
[1719018173007,27.479,133.71,133.66,7.4815]
[1719018173818,0.748167,133.67,133.65,7.482]
[1719018174115,0.748167,133.67,133.63,0.34]
[1719018174310,0.748167,133.67,133.64,7.4823]
[1719018174507,0.748167,133.67,133.66,7.4816]
[1719018176313,0.748167,133.67,133.62,39.0495]
[1719018177599,0.748167,133.67,133.66,7.4816]
[1719018177794,0.748167,133.67,133.66,7.8216]
[1719018180396,7.4763,133.76,133.71,7.4788]
[1719018181316,22.7841,133.78,133.72,7.4782]
[1719018181317,7.4755,133.77,133.72,7.4782]
[1719018182115,22.7841,133.78,133.73,0.17]
[1719018182414,22.7841,133.78,133.71,0.17]
[1719018182415,22.7841,133.78,133.74,7.477]
[1719018182823,7.474,133.8,133.75,7.4765]
[1719018183014,20.0,133.79,133.75,7.4765]
[1719018183218,20.0,133.79,133.72,15.8184]
[1719018183543,20.0,133.79,133.73,0.34]
[1719018183820,20.0,133.81,133.73,0.34]
[1719018184023,7.4747,133.79,133.74,7.4771]
[1719018185597,20.0,133.81,133.75,7.4762]
[1719018185598,7.474,133.8,133.75,7.4762]
[1719018185799,20.0,133.81,133.76,7.4757]
[1719018185800,20.0,133.79,133.76,7.4757]
[1719018185998,20.0,133.81,133.78,7.4748]
[1719018186209,28.9949,133.82,133.78,7.4748]
[1719018186411,28.9949,133.82,133.75,18.6915]
[1719018186412,21.5222,133.82,133.75,18.6915]
[1719018186606,21.5222,133.82,133.76,0.34]
[1719018187220,21.5222,133.82,133.77,18.6887]
[1719018187523,21.5222,133.82,133.76,0.34]
[1719018187711,21.5222,133.82,133.78,7.4745]
[1719018188404,21.5222,133.82,133.79,7.4743]
[1719018188710,8.3520401,133.83,133.79,7.4743]
[1719018188905,20.0,133.82,133.79,7.4743]
[1719018189107,20.0,133.82,133.78,7.4747]
[1719018189322,20.0,133.82,133.77,0.17]
[1719018189512,0.8798401,133.83,133.8,7.4737]
[1719018190337,0.8798401,133.83,133.78,18.6869]
[1719018190501,0.8798401,133.83,133.82,7.4727]
[1719018191199,0.8798401,133.83,133.82,7.8127]
[1719018192021,0.8798401,133.83,133.81,7.473]
[1719018192326,0.8798401,133.83,133.82,7.4727]
[1719018193307,0.8798401,133.83,133.82,0.17]
[1719018193506,0.8798401,133.83,133.81,7.4732]
[1719018193829,0.8798401,133.83,133.82,7.4727]
[1719018196148,0.8798401,133.83,133.82,7.6427]
[1719018196438,0.8798401,133.83,133.82,7.4727]
[1719018196603,23.0045401,133.83,133.72,42.891]
[1719018196802,20.0,133.82,133.74,18.6927]
[1719018197032,20.0,133.82,133.72,15.4209]
[1719018197325,20.0,133.82,133.72,34.1166]
[1719018197627,7.4736,133.81,133.76,7.476]
[1719018197829,20.0,133.82,133.75,7.4765]
[1719018197830,7.4739,133.8,133.75,7.4765]
[1719018199214,7.4744,133.79,133.74,7.477]
[1719018199814,20.0,133.78,133.69,20.0]
[1719018200024,20.0,133.78,133.74,7.4771]
[1719018200529,20.0,133.78,133.75,7.4766]
[1719018201234,20.0,133.78,133.74,7.4769]
[1719018202225,20.0,133.78,133.76,7.4755]
[1719018202435,20.0,133.8,133.76,7.4755]
[1719018202627,20.0,133.8,133.77,7.4752]
[1719018202832,7.4728,133.82,133.77,7.4752]
[1719018202833,20.0,133.81,133.77,7.4752]
[1719018205544,20.0,133.81,133.74,0.17]
[1719018205545,8.3520401,133.83,133.78,7.4746]
[1719018205726,8.3520401,133.83,133.74,22.8921]
[1719018205727,8.3520401,133.83,133.76,18.69]
[1719018205927,0.8798401,133.83,133.8,7.4734]
[1719018206133,0.8798401,133.83,133.75,0.17]
[1719018206640,7.4739,133.8,133.76,7.4758]
[1719018206849,7.4734,133.81,133.76,7.4758]
[1719018207926,7.4729,133.82,133.77,7.4754]
[1719018208127,20.0,133.81,133.77,7.4754]
[1719018211038,27.4734,133.81,133.76,7.4758]
[1719018211638,20.0,133.81,133.79,7.474]
[1719018211840,20.8798401,133.83,133.79,7.474]
[1719018212159,20.8798401,133.83,133.8,7.4735]
[1719018212332,20.8798401,133.83,133.79,7.4741]
[1719018212333,0.8798401,133.83,133.79,7.4741]
[1719018212652,20.8798401,133.83,133.79,7.4741]
[1719018212953,20.8798401,133.83,133.78,7.4747]
[1719018213253,7.4728,133.82,133.77,7.4752]
[1719018213664,8.3522401,133.83,133.78,7.4747]
[1719018213952,0.74749589,133.79,133.78,7.4747]
[1719018214461,0.74749589,133.79,133.78,7.8147]
[1719018219622,0.74749589,133.79,133.78,7.4749]
[1719018219954,0.74749589,133.79,133.77,7.4752]
[1719018220124,0.74749589,133.79,133.78,7.4749]
[1719018220845,0.74749589,133.79,133.78,7.6449]
[1719018221241,0.74749589,133.79,133.78,7.8149]
[1719018228449,0.74749589,133.79,133.78,27.8149]
[1719018230443,0.74749589,133.79,133.78,7.8149]
[1719018240170,0.74749589,133.79,133.78,7.6449]
[1719018241661,0.74749589,133.79,133.78,7.8149]
[1719018242952,0.74749589,133.79,133.78,7.4749]
[1719018244965,0.74749589,133.79,133.78,7.8149]
[1719018246779,0.74749589,133.79,133.78,7.6449]
[1719018246987,0.74749589,133.79,133.77,7.4754]
[1719018248262,0.74749589,133.79,133.78,7.4749]
[1719018252377,0.74749589,133.79,133.78,17.0449]
[1719018252562,0.74749589,133.79,133.78,17.2149]
[1719018253366,0.74749589,133.79,133.78,7.8149]
[1719018255985,0.74749589,133.79,133.78,27.8149]
[1719018259574,0.74749589,133.79,133.78,50.3149]
[1719018262266,0.74749589,133.79,133.78,27.8149]
[1719018262687,0.74749589,133.79,133.78,7.4749]
[1719018263967,0.74749589,133.79,133.78,7.8149]
[1719018265978,0.74749589,133.79,133.78,26.5022]
[1719018266984,0.74749589,133.79,133.78,46.5022]
[1719018267191,0.74749589,133.79,133.78,74.7022]
[1719018267384,9.589e-05,133.79,133.78,97.2022]
[1719018272289,9.589e-05,133.79,133.78,74.7022]
[1719018272686,9.589e-05,133.79,133.78,46.5022]
[1719018281516,9.589e-05,133.79,133.78,55.9022]
[1719018283909,9.589e-05,133.79,133.78,46.5022]
[1719018284113,9.589e-05,133.79,133.78,7.6449]
[1719018284316,9.589e-05,133.79,133.78,17.0449]
[1719018286708,9.589e-05,133.79,133.78,17.2149]
[1719018297820,9.589e-05,133.79,133.78,7.8149]
[1719018298129,9.589e-05,133.79,133.78,17.2149]
[1719018300528,9.589e-05,133.79,133.78,7.4749]
[1719018303339,9.589e-05,133.79,133.77,7.4752]
[1719018306223,9.589e-05,133.79,133.76,7.4758]
[1719018307937,9.589e-05,133.79,133.77,7.4754]
[1719018308512,9.589e-05,133.79,133.78,7.4749]
[1719018309218,9.589e-05,133.79,133.78,17.2149]
[1719018312546,9.589e-05,133.79,133.78,37.2149]
[1719018315539,9.589e-05,133.79,133.78,27.8149]
[1719018315723,9.589e-05,133.79,133.78,7.6449]
[1719018316033,9.589e-05,133.79,133.78,17.0449]
[1719018316442,9.589e-05,133.79,133.78,16.8749]
[1719018317212,9.589e-05,133.79,133.78,7.4749]
[1719018318453,9.589e-05,133.79,133.78,16.8749]
[1719018318720,9.589e-05,133.79,133.78,17.2149]
[1719018321047,9.589e-05,133.79,133.78,7.8149]
[1719018321830,9.589e-05,133.79,133.78,17.2149]
[1719018325239,9.589e-05,133.79,133.78,37.2149]
[1719018325973,9.589e-05,133.79,133.78,52.7334]
[1719018335668,0.8798401,133.83,133.82,26.1545]
[1719018335858,4.01e-05,133.83,133.82,65.2945]
[1719018336370,4.01e-05,133.83,133.82,87.7945]
[1719018336549,15.8523,133.9,133.85,18.6762]
[1719018336746,15.8523,133.9,133.88,16.8689]
[1719018336958,14.8523,133.9,133.88,16.8689]
[1719018337363,6.0314,133.92,133.89,9.57]
[1719018337567,6.0314,133.92,133.9,16.8679]
[1719018338050,6.0314,133.92,133.9,7.4679]
[1719018338250,6.0314,133.92,133.89,18.64716999]
[1719018340567,6.0314,133.92,133.89,16.8686]
[1719018340956,6.0314,133.92,133.88,7.8091]
[1719018343776,6.0314,133.92,133.89,7.4687]
[1719018347475,6.0314,133.92,133.9,7.4682]
[1719018347675,6.0314,133.92,133.91,7.4677]
[1719018347978,25.2523,133.94,133.91,7.4677]
[1719018348565,15.8523,133.94,133.91,7.4677]
[1719018350473,25.2523,133.94,133.9,7.468]
[1719018351885,15.8523,133.94,133.91,7.4675]
[1719018353967,0.74677022,133.92,133.9,16.8679]
[1719018354483,0.74677022,133.92,133.91,7.4677]
[1719018354662,0.74677022,133.92,133.91,17.2077]
[1719018355255,0.74677022,133.92,133.91,26.6077]
[1719018355460,0.74677022,133.92,133.91,74.8077]
[1719018359583,0.8798401,133.97,133.96,26.1271]
[1719018359773,0.8798401,133.97,133.96,35.8671]
[1719018365065,0.8798401,133.97,133.92,16.6274]
[1719018365269,0.8798401,133.97,133.95,7.4651]
[1719018365471,0.8798401,133.97,133.95,9.4]
[1719018365769,0.8798401,133.97,133.95,16.8653]
[1719018366476,0.8798401,133.97,133.96,7.4649]
[1719018366675,0.8798401,133.97,133.96,16.8649]
[1719018367085,0.8798401,133.97,133.96,17.2049]
[1719018367983,6.1347,134.06,134.03,7.4606]
[1719018368185,6.1347,134.06,134.02,7.461]
[1719018368389,6.1347,134.06,134.01,28.225]
[1719018368698,6.1347,134.06,134.05,7.4599]
[1719018369293,16.493,134.08,134.07,7.4587]
[1719018369475,16.493,134.08,134.05,7.4597]
[1719018369890,16.4145401,134.1,134.06,7.4589]
[1719018370075,20.0,134.09,134.06,9.4]
[1719018370390,0.8798401,134.1,134.08,9.4]
[1719018370584,0.8798401,134.1,134.09,7.4576]
[1719018370895,0.8798401,134.1,134.09,17.0276]
[1719018371210,0.8798401,134.1,134.09,17.1976]
[1719018371394,0.8798401,134.1,134.09,7.7976]
[1719018371798,0.8798401,134.1,134.09,0.17]
[1719018372114,0.8798401,134.1,134.09,7.4576]
[1719018372279,0.8798401,134.1,134.09,7.7976]
[1719018372608,0.8798401,134.1,134.09,26.4417]
[1719018372905,0.8798401,134.1,134.09,7.7976]
[1719018373101,0.8798401,134.1,134.09,7.6276]
[1719018373305,0.8798401,134.1,134.08,7.4581]
[1719018373476,0.8798401,134.1,134.09,7.4576]
[1719018373912,1.62560787,134.1,134.01,43.3262]
[1719018374207,1.62560787,134.1,133.97,15.2562]
[1719018374208,7.4584,134.08,133.97,15.2562]
[1719018374377,7.4578,134.09,134.03,7.4604]
[1719018374581,20.0,134.08,133.97,15.2562]
[1719018374786,27.4584,134.08,134.03,7.461]
[1719018374989,27.4584,134.08,133.97,15.2562]
[1719018375198,20.0,134.08,134.04,7.4603]
[1719018375699,20.0,134.08,134.03,7.4606]
[1719018375995,27.4582,134.08,134.03,7.4606]
[1719018376576,20.0,134.08,134.03,7.4606]
[1719018378009,20.0,134.08,134.01,7.4619]
[1719018378313,20.0,134.08,133.94,5.83024933]
[1719018378314,7.4622,134.01,133.94,15.2562]
[1719018378606,24.7861,134.04,133.92,18.6677]
[1719018378903,7.4632,133.99,133.94,7.4656]
[1719018379283,20.0,133.98,133.93,7.4663]
[1719018379483,27.4638,133.98,133.93,7.4663]
[1719018379998,20.0,133.98,133.94,7.4659]
[1719018380570,20.0,133.98,133.9,18.6705]
[1719018380771,7.4639,133.98,133.93,7.4665]
[1719018380993,7.4639,133.98,133.93,7.4664]
[1719018380994,7.4638,133.98,133.93,7.4664]
[1719018381197,20.0,133.99,133.91,18.668]
[1719018381697,20.0,133.99,133.92,0.17]
[1719018381900,20.0,133.99,133.95,7.4651]
[1719018382101,20.0,133.99,133.92,19.0065]
[1719018382303,20.0,133.99,133.97,7.4643]
[1719018382486,7.462,134.02,133.97,7.4643]
[1719018382686,20.0,134.01,133.98,7.4636]
[1719018383091,20.0,134.01,133.97,7.4641]
[1719018383288,20.0,134.01,133.94,18.6636]
[1719018383494,20.0,134.02,133.95,0.34]
[1719018383805,7.4622,134.01,133.96,7.4647]
[1719018384010,20.0,134.02,133.95,0.34]
[1719018384202,260.4,134.06,133.95,0.34]
[1719018384408,20.0,134.03,133.99,7.4632]
[1719018384584,27.461,134.03,133.98,7.4635]
[1719018385082,6.1347,134.04,133.97,18.6605]
[1719018385281,6.1347,134.04,134.0,7.4624]
[1719018385479,6.1347,134.04,133.95,18.8334]
[1719018385706,18.653,134.03,133.95,0.17]
[1719018385884,7.4616,134.02,133.97,7.4639]
[1719018386231,7.4612,134.03,133.98,7.4637]
[1719018387496,7.4612,134.03,133.99,7.4631]
[1719018388290,7.4619,134.02,133.97,7.4641]
[1719018388491,20.0,134.02,133.94,7.4656]
[1719018388686,7.4632,133.99,133.94,7.4658]
[1719018388904,7.4628,134.0,133.95,7.4653]
[1719018389103,7.4628,134.0,133.91,18.6681]
[1719018389104,20.0,133.99,133.93,18.6662]
[1719018389300,16.4552,134.01,133.95,18.6624]
[1719018389507,16.4552,134.01,133.99,7.4629]
[1719018390510,6.1347,134.04,134.0,7.4625]
[1719018390812,6.1347,134.04,134.01,7.4621]
[1719018391106,6.1347,134.04,134.03,7.461]
[1719018391310,6.1347,134.04,134.02,7.4613]
[1719018391489,6.1347,134.04,134.01,7.4619]
[1719018392787,6.1347,134.04,133.96,18.662]
[1719018392997,7.4611,134.03,133.98,7.4635]
[1719018393208,6.1347,134.04,133.97,0.34]
[1719018393407,6.1347,134.04,134.0,7.4623]
[1719018393795,0.74576777,134.01,134.0,7.4626]
[1719018394209,0.74576777,134.01,133.99,7.4632]
[1719018395509,0.74576777,134.01,133.98,7.4637]
[1719018399210,0.74576777,134.01,133.99,7.4632]
[1719018400616,0.74576777,134.01,134.0,7.4626]
[1719018401316,0.74576777,134.01,134.0,26.1193]
[1719018402906,0.74576777,134.01,134.0,26.4593]
[1719018404904,0.74576777,134.01,134.0,46.4593]
[1719018407223,0.74576777,134.01,134.0,7.4626]
[1719018408531,0.74576777,134.01,134.0,7.6326]
[1719018409222,0.74576777,134.01,134.0,7.8026]
[1719018409805,0.74576777,134.01,134.0,7.4626]
[1719018421034,0.74576777,134.01,133.99,7.4629]
[1719018421238,0.74576777,134.01,133.97,7.4641]
[1719018421418,28.20786777,134.01,133.96,7.4646]
[1719018421740,28.20786777,134.01,133.94,18.6647]
[1719018421741,8.20786777,134.01,133.97,7.4643]
[1719018422044,20.0,134.0,133.97,7.4643]
[1719018422735,20.0,134.0,133.96,7.4646]
[1719018422913,27.4627,134.0,133.96,7.4646]
[1719018423834,20.0,134.0,133.97,7.4643]
[1719018424336,0.74576777,134.01,134.0,7.4626]
[1719018424719,0.74576777,134.01,133.99,7.463]
[1719018424918,0.74576777,134.01,134.0,7.4626]
[1719018428636,0.74576777,134.01,133.97,18.6596]
[1719018428637,0.74576777,134.01,133.99,7.4629]
[1719018430544,0.74576777,134.01,133.97,18.6596]
[1719018430851,0.74576777,134.01,133.99,7.4629]
[1719018431216,0.74576777,134.01,133.98,7.4635]
[1719018431421,8.20796777,134.01,133.93,37.3313]
[1719018431618,8.20796777,134.01,133.97,7.4643]
[1719018432139,8.20796777,134.01,133.97,7.4642]
[1719018432328,0.74576777,134.01,133.98,7.4634]
[1719018433844,0.74576777,133.99,133.98,7.4634]
[1719018434727,0.74576777,133.99,133.97,7.4641]
[1719018434931,0.74576777,133.99,133.98,7.4638]
[1719018439443,0.74576777,133.99,133.98,17.1838]
[1719018439827,0.74576777,133.99,133.98,7.4638]
[1719018440029,0.74576777,133.99,133.97,7.4641]